[Event "ESP-ch Seniors 2017"]
[Site "Altea"]
[Date "2017.10.15"]
[Round "9"]
[White "Estrada Martinez, Cesar"]
[Black "Martinez De Soria Gordon, Jose Manuel"]
[Result "1/2-1/2"]
[ECO "A05"]
[WhiteElo "2045"]
[BlackElo "1862"]
[Annotator "NA RC"]
[PlyCount "154"]
[EventDate "2017.??.??"]
[EventType "swiss"]
[EventCountry "ESP"]
[SourceTitle "playchess.com"]
[Source "ChessBase"]
[SourceQuality "1"]
[TimeControl "5400+30"]

{[%evp 16,141,23,32767,33,31,25,36,57,52,57,43,52,44,39,40,53,0,31,16,32767,27,32,32767,32767,81,56,32767,284,114,32767,32767,32767,32767,32767,129,118,115,120,108,137,125,32767,150,156,32767,113,148,130,32767,175,132,32767,32767,32767,32767,32767,32767,32767,32767,32767,32767,32767,32767,32767,160,32767,32767,32767,32767,159,152,161,163,160,163,162,170,160,158,164,127,133,32767,32767,32767,32767,32767,32767,32767,32767,32767,141,32767,85,65,123,20,28,20,22,8,16,12,133,139,110,150,87,150,115,22,134,97,8,0,387,8,456,472,135,0,349,283,8,32767,283,8]} 1. Nf3 {[%emt 0:00:00]} Nf6 {[%emt 0:00:18]} 2. c4 {[%emt 0:00:00]} b6 {[%emt 0:00:50]} 3. Nc3 {[%emt 0:00:28]} Bb7 {[%emt 0:00:05]} 4. d4 {[%emt 0:00:16]} e6 {[%emt 0:00:58]} 5. a3 {[%emt 0:00:34]} Ne4 {[%emt 0:00:41]} 6. Nxe4 {[%emt 0:03:47]} Bxe4 {[%emt 0:00:03]} 7. Nd2 {[%emt 0:00:16]} Bb7 {[%emt 0:00:21]} 8. e4 {[%emt 0:00:31]} Be7 {[%emt 0:00:57] E12: Queen's Indian: Unusual White 4th moves, 4 a3, 4 Nc3 Bb7 5 a3 and 4 Nc3 Bb7} (8... Qf6 9. d5 c6 10. Nf3 cxd5 11. cxd5 exd5 12. exd5 Bd6 13. Bc4 O-O 14. O-O Na6 15. Bg5 Qg6 16. b4 Nc7 17. Qd4 {1-0 (45) Bukavshin,I (2657)-Pridorozhni,A (2563) Khanty-Mansiysk 2015}) 9. Bd3 {[%emt 0:01:19]} d6 {[%emt 0:04:42]} 10. O-O {[%emt 0:02:11]} Nd7 {[%emt 0:00:02]} 11. Nf3 {[%emt 0:07:47] LiveBook: 4 Partien} Nf8 $146 {[%emt 0:01:21]} ({Predecessor:} 11... O-O 12. Rb1 c5 13. d5 Bf6 14. Bf4 e5 15. Be3 g6 16. b4 Bg7 {½-½ (85) Javakhishvili,L (2455)-Bodnaruk,A (2415) Khanty-Mansiysk 2012}) 12. Be3 {[%emt 0:04:29]} Qd7 {[%emt 0:00:52]} 13. Qe2 {[%emt 0:01:37]} Ng6 {[%emt 0:00:28]} 14. Rad1 {[%emt 0:03:59]} O-O {[%emt 0:00:17]} 15. Bc2 {[%emt 0:10:58]} Rae8 {[%emt 0:04:37]} 16. e5 {[%emt 0:14:47]} Qc8 {[%emt 0:08:46]} 17. Ng5 {[%emt 0:10:15]} Bxg5 {[%emt 0:08:17]} 18. Bxg5 {[%emt 0:00:11]} h6 {[%emt 0:00:49]} 19. Bc1 {[%emt 0:01:58]} Qd8 {[%emt 0:07:55]} 20. Qh5 {[%emt 0:03:19]} Nh4 {[%emt 0:06:02]} 21. f3 {[%emt 0:04:49]} f5 $2 {[%emt 0:00:47]} (21... Nf5 $14) 22. g3 {[%emt 0:02:41]} (22. exd6 $18 {is more deadly.} cxd6 23. Ba4) 22... Bxf3 {[%emt 0:07:27]} 23. Rxf3 {[%emt 0:00:26]} Nxf3+ {[%emt 0:00:04]} 24. Qxf3 {[%emt 0:00:03]} dxe5 {[%emt 0:00:34]} 25. dxe5 {[%emt 0:00:23]} Qe7 {[%emt 0:00:05]} 26. Be3 {[%emt 0:01:56]} Rd8 {[%emt 0:00:06]} 27. Qc6 {[%emt 0:05:55]} g5 {[%emt 0:00:26]} 28. Rf1 {[%emt 0:02:43]} Qd7 {[%emt 0:00:26]} 29. Qxd7 Rxd7 {[%emt 0:00:01]} 30. h4 {[%emt 0:01:53]} Rg7 {[%emt 0:00:53]} 31. hxg5 {[%emt 0:01:26]} hxg5 {[%emt 0:02:04]} 32. c5 {[%emt 0:02:05]} Rd8 {[%emt 0:00:33]} (32... f4 $16 {was necessary.}) 33. Kf2 {[%emt 0:03:17]} Kf7 {[%emt 0:00:58]} 34. Ke2 {[%emt 0:00:20]} Ke7 {[%emt 0:01:48]} 35. Bb3 {[%emt 0:00:42]} Rh8 {[%emt 0:00:51]} 36. Rf2 {[%emt 0:01:09]} Rh3 {[%emt 0:02:53]} 37. Rg2 {[%emt 0:00:27]} Rg6 {[%emt 0:00:19]} 38. Bc2 {[%emt 0:00:39]} Rg8 {[%emt 0:00:32]} 39. Kf2 {[%emt 0:00:46]} Rh5 {[%emt 0:01:02]} 40. g4 {[%emt 0:02:21]} fxg4 {[%emt 0:07:55]} 41. Rxg4 {[%emt 0:00:23]} Rh2+ {[%emt 0:01:05]} 42. Rg2 {[%emt 0:00:01]} Rf8+ {[%emt 0:00:33]} 43. Kg1 {[%emt 0:00:36]} Rxg2+ {[%emt 0:00:18]} 44. Kxg2 {[%emt 0:00:01]} g4 {[%emt 0:00:17]} 45. Be4 {[%emt 0:02:21]} Rh8 {[%emt 0:01:42]} 46. Bf2 {[%emt 0:02:07]} Kf7 {[%emt 0:01:19]} 47. Kg3 {[%emt 0:00:57]} Rh5 {[%emt 0:01:08]} 48. Kxg4 {[%emt 0:00:41]} Rxe5 {[%emt 0:00:21]} 49. Kf4 {[%emt 0:00:12]} Rh5 {[%emt 0:00:16]} 50. cxb6 {[%emt 0:00:22]} axb6 {[%emt 0:00:35]} 51. Ke3 {[%emt 0:01:52]} Rb5 {[%emt 0:01:26]} 52. b4 {[%emt 0:00:01]} Rh5 {[%emt 0:00:11]} 53. Bg3 {[%emt 0:00:32]} c5 {[%emt 0:04:49]} 54. bxc5 {[%emt 0:00:19]} Rxc5 {[%emt 0:00:28]} 55. Bd6 {[%emt 0:00:15]} Rh5 {[%emt 0:01:36]} (55... Rc1 $14) 56. Bb4 {[%emt 0:00:26]} (56. Kd4 $16) 56... e5 {[%emt 0:01:49]} 57. Bd5+ {[%emt 0:00:29]} Kf6 $1 {[%emt 0:00:33]} 58. Kd3 {[%emt 0:00:34]} Rh4 {[%emt 0:00:54]} 59. Be4 {[%emt 0:00:38]} b5 {[%emt 0:00:40]} (59... Rh3+ $11 {remains equal.} 60. Kc4 Ke6) 60. Bc6 {[%emt 0:00:24]} Rd4+ {[%emt 0:00:28]} ({Better is} 60... Ke6 $14) 61. Ke3 {[%emt 0:00:09]} Ke6 {[%emt 0:01:10]} 62. Bxb5 {[%emt 0:00:14]} Kd5 {[%emt 0:00:10]} 63. Ba6 {[%emt 0:00:26]} Kc6 {[%emt 0:00:21]} (63... Rh4 $1 $14) 64. Bd3 {[%emt 0:00:17]} Rxd3+ {[%emt 0:00:16]} 65. Kxd3 {[%emt 0:00:51]} Kb7 {[%emt 0:03:13]} 66. Ke4 {[%emt 0:00:03]} Ka8 {[%emt 0:00:12]} 67. Bc5 {[%emt 0:00:49]} Kb7 {[%emt 0:00:06]} 68. Be3 {[%emt 0:00:11]} Ka8 {[%emt 0:00:06]} 69. Kd5 {[%emt 0:01:56]} e4 {[%emt 0:00:10]} 70. Kc6 {[%emt 0:00:09]} Kb8 {[%emt 0:00:11]} 71. a4 $11 {[%emt 0:00:21]} ({White should try} 71. Bf4+ $18 Ka8 72. Bh6) 71... Ka8 {[%emt 0:00:13]} 72. Kb6 {[%emt 0:01:07]} Kb8 {[%emt 0:00:11]} 73. Kc6 {[%emt 0:02:03]} Ka8 {[%emt 0:00:07]} 74. Kc5 {[%emt 0:00:13]} Kb8 {[%emt 0:00:08]} 75. a5 {[%emt 0:00:14]} Kb7 {[%emt 0:00:07]} 76. Kb5 {[%emt 0:00:09]} Ka8 {[%emt 0:00:09]} 77. a6 {[%emt 0:00:42]} Kb8 1/2-1/2

[Event "ESP-ch Seniors 2017"]
[Site "Altea"]
[Date "2017.10.15"]
[Round "9"]
[White "Vinal Gutierrez, Pedro"]
[Black "Bautista Sanchez, Joan"]
[Result "1-0"]
[ECO "A40"]
[WhiteElo "2041"]
[BlackElo "2123"]
[Annotator "NA"]
[PlyCount "51"]
[EventDate "2017.??.??"]
[EventType "swiss"]
[EventCountry "ESP"]
[SourceTitle "playchess.com"]
[Source "ChessBase"]
[SourceQuality "1"]
[TimeControl "5400+30"]

{[%evp 8,51,25,19,38,47,53,36,48,20,32767,6,32767,36,39,37,39,25,45,30,44,35,33,23,32767,-13,0,-4,26,32767,32767,32767,32767,32767,32767,32767,-14,0,32767,32767,32767,32767,32767,110,32767,452]} 1. d4 {[%emt 0:00:00]} c6 {[%emt 0:00:32]} 2. c4 {[%emt 0:00:00]} Nf6 {[%emt 0:00:07]} 3. Nc3 {[%emt 0:00:00]} d5 {[%emt 0:00:28]} 4. cxd5 {[%emt 0:00:00]} cxd5 {[%emt 0:00:10]} 5. Bf4 {[%emt 0:00:28]} g6 {[%emt 0:02:29]} 6. e3 {[%emt 0:00:28]} Bg7 {[%emt 0:00:47]} 7. Nf3 {[%emt 0:01:54]} O-O {[%emt 0:00:19]} 8. h3 {[%emt 0:01:02] LiveBook: 52 Games D90: Grünfeld: 4 Nf3 Bg7 sidelines} (8. Bd3 Nc6 {½-½ (8) Bruzon Batista,L (2668)-Ortiz Suarez,I (2623) Duran 2014}) 8... Nc6 {[%emt 0:00:19]} 9. Bb5 {[%emt 0:02:09]} Bd7 {[%emt 0:10:37]} 10. O-O {[%emt 0:01:03]} Qb6 {[%emt 0:04:40]} 11. Qe2 {[%emt 0:04:41]} a6 {[%emt 0:01:02]} 12. Ba4 {[%emt 0:02:38]} Qa5 $146 {[%emt 0:03:16]} ({Predecessor:} 12... Rfc8 13. Rfc1 e6 14. Ne5 Nxe5 15. dxe5 Rxc3 16. bxc3 Bxa4 17. exf6 Bxf6 {½-½ (80) Lutsko,I (2399)-Elkin,M (2242) Odessa 2008}) 13. Bb3 {[%emt 0:09:52]} e6 {[%emt 0:03:14]} 14. Rfc1 {[%emt 0:02:31]} Rfc8 {[%emt 0:00:28]} 15. a3 {[%emt 0:03:59]} Qb6 {[%emt 0:04:06]} 16. Nd2 {[%emt 0:08:44]} Na5 {[%emt 0:07:11]} 17. Qd1 $1 {[%emt 0:02:06]} Ne4 {[%emt 0:11:18]} 18. Ncxe4 {[%emt 0:01:52]} dxe4 {[%emt 0:00:03]} 19. Rc3 {[%emt 0:02:57]} Rxc3 {[%emt 0:01:33]} 20. bxc3 {[%emt 0:00:52]} Nxb3 {[%emt 0:04:10]} 21. Qxb3 {[%emt 0:00:17]} Qxb3 {[%emt 0:02:24]} 22. Nxb3 {[%emt 0:00:14]} Bf8 {[%emt 0:00:45]} 23. c4 {[%emt 0:02:05]} b6 {[%emt 0:03:46]} 24. Nd2 {[%emt 0:03:06]} Rc8 {[%emt 0:00:38]} 25. Nxe4 {[%emt 0:01:24]} Rxc4 {[%emt 0:00:46]} 26. Nf6+ $18 1-0